fUST/lending_fUST_20260419
["ID","MTS","AMOUNT","RATE_DAILY","PERIOD"]
[420834006,1776606639482,-326.5025519,0.00019832,2]
[420834008,1776606639492,-800.0,0.00019839,2]
[420834010,1776606639501,-800.0,0.00019854,2]
[420834012,1776606639511,-329.08038131,0.0001986,2]
[420834014,1776606639520,-1190.0,0.000199,2]
[420834016,1776606639530,-800.0,0.00019914,2]
[420834018,1776606639539,-2000.0,0.00019939,7]
[420834020,1776606639549,-500.0,0.00019973,2]
[420834022,1776606639558,-601.242917,0.00019973,2]
[420834024,1776606639567,-500.0,0.00019973,2]
[420834026,1776606639576,-150.0,0.00019973,2]
[420834028,1776606639586,-161.80734409,0.00019973,2]
[420834030,1776606639596,-150.0,0.00019973,2]
[420834032,1776606639605,-169.82432709,0.00019973,2]
[420834034,1776606639614,-174.24714527,0.00019973,2]
[420834036,1776606639623,-500.0,0.00019973,2]
[420834038,1776606639632,-270.05596358,0.00019973,2]
[420834040,1776606639641,-220.00670315,0.00019973,2]
[420834042,1776606639650,-500.0,0.00019973,2]
[420834044,1776606639660,-500.0,0.00019973,2]
[420834046,1776606639669,-500.01523443,0.00019973,2]
[420834047,1776606639679,-320.00975004,0.00019973,2]
[420834050,1776606639689,-500.0,0.00019973,2]
[420834051,1776606639698,-500.0,0.00019973,2]
[420834053,1776606639708,-500.0,0.00019973,2]
[420834056,1776606639719,-266.56599474,0.00019973,2]
[420834058,1776606639729,-500.0,0.00019973,2]
[420834060,1776606639739,-500.0,0.00019973,2]
[420834061,1776606639749,-500.0,0.00019973,2]
[420834063,1776606639758,-500.0,0.00019973,2]
[420834065,1776606639767,-500.0,0.00019973,2]
[420834067,1776606639778,-500.0,0.00019973,2]
[420834069,1776606639788,-613.9888782,0.00019982,2]
[420834071,1776606639797,-26152.15716532,0.0001999,2]
[420834073,1776606639806,-155.0,0.00019999,2]
[420834075,1776606639815,-220.63,0.0002,2]
[420834077,1776606639824,-547970.25799374,0.0002,2]
[420834080,1776606639837,-66615.34038482,0.0002,2]
[420834082,1776606639846,-3794.20276702,0.0002,2]
[420834084,1776606639856,-778.0,0.0002,2]
[420834086,1776606639865,-218.0,0.0002,2]
[420834088,1776606639874,-194.0,0.0002,2]
[420834090,1776606639883,-150.0,0.0002,5]
[420834092,1776606639893,-507.0,0.0002,2]
[420834094,1776606639904,-215.32160078,0.0002,2]
[420834096,1776606639913,-200.0,0.0002,4]
[420834098,1776606639922,-203.02518033,0.0002,60]
[420834100,1776606639931,-336.0,0.0002,2]
[420834102,1776606639942,-250.0,0.0002,10]
[420834103,1776606639951,-201.739115,0.0002,2]
[420834105,1776606639961,-694.0,0.0002,2]
[420834107,1776606639971,-1002.0,0.0002,2]
[420834109,1776606639982,-271.20139861,0.00020092,7]
[420834111,1776606639991,-250.0,0.000201,10]
[420834113,1776606640002,-200.0,0.00020112,120]
[420834115,1776606640012,-1190.0,0.00020174,2]
[420834117,1776606640023,-3794.20276702,0.000202,2]
[420834120,1776606640034,-250.0,0.000202,10]
[420834122,1776606640046,-250.0,0.000203,10]
[420834124,1776606640056,-271.20139861,0.00020331,7]
[420834126,1776606640065,-200.0,0.00020331,120]
[420834128,1776606640075,-160.0,0.00020344,3]
[420834129,1776606640087,-164.46841824,0.00020344,5]
[420834131,1776606640096,-600.0,0.00020399,2]
[420834133,1776606640106,-3794.20276702,0.000204,2]
[420834135,1776606640115,-250.0,0.000204,10]
[420834137,1776606640125,-200.0,0.00020402,120]
[420834140,1776606640134,-1190.0,0.00020448,2]
[420834142,1776606640144,-1489.1959371,0.00020478,2]
[420834144,1776606640153,-200.0,0.00020487,120]
[420834146,1776606640163,-200.0,0.000205,10]
[420834148,1776606640173,-357.588317,0.000205,10]
[420834150,1776606640183,-435.84762983,0.00020521,2]
[420834152,1776606640192,-1058.28806321,0.00020521,2]
[420834154,1776606640201,-250.0,0.00020521,2]
[420834156,1776606640210,-250.0,0.00020521,2]
[420834158,1776606640220,-1000.0,0.00020521,2]
[420834160,1776606640229,-1000.0,0.00020521,2]
[420834162,1776606640240,-1000.0,0.00020521,2]
[420834164,1776606640249,-517.54545618,0.00020521,2]
[420834166,1776606640258,-1000.0,0.00020521,2]
[420834168,1776606640268,-1000.0,0.00020521,2]
[420834170,1776606640278,-918.38933208,0.00020521,2]
[420834172,1776606640288,-1000.0,0.00020521,2]
[420834174,1776606640298,-1000.0,0.00020521,2]
[420834176,1776606640308,-1000.0,0.00020521,2]
[420834178,1776606640318,-1000.0,0.00020521,2]
[420834180,1776606640328,-869.35949567,0.00020521,2]
[420834182,1776606640337,-7714.11914963,0.00020545,2]
[420834184,1776606640348,-271.20139861,0.0002057,14]
[420834187,1776606640358,-3794.20276702,0.000206,2]
[420834189,1776606640368,-151.0,0.000206,2]
[420834191,1776606640377,-160.0,0.00020601,7]
[420834193,1776606640386,-180.159391,0.00020601,7]
[420834194,1776606640399,-200.318782,0.00020601,7]
[420834197,1776606640414,-173.608142,0.00020601,7]
[420834199,1776606640424,-153.0720201,0.00020607,2]
[420834201,1776606640434,-151.0,0.00020608,2]
[420834203,1776606640444,-325.2970195,0.0002061,2]
[420834205,1776606640454,-2000.0,0.0002061,7]
[420834209,1776606640465,-200.0,0.00020629,120]
[420834212,1776606640475,-503.1327,0.000207,2]
[420834215,1776606640485,-200.0,0.00020719,120]
[420834217,1776606640496,-1190.0,0.00020722,2]
[420834219,1776606640507,-1707.28,0.000208,2]
[420834221,1776606640516,-1707.28,0.000208,2]
[420834223,1776606640525,-1707.28,0.000208,2]
[420834225,1776606640535,-1123.3949,0.000208,2]
[420834227,1776606640545,-1508.16,0.000208,2]
[420834229,1776606640555,-1508.16,0.000208,2]
[420834231,1776606640564,-3794.20276702,0.000208,2]
[420834233,1776606640574,-271.20139861,0.00020808,30]
[420834235,1776606640583,-259.04559727,0.000209,2]
[420834237,1776606640593,-1751.7,0.000209,2]
[420834239,1776606640603,-4321.00604835,0.00020922,2]
[420834241,1776606640612,-200.0,0.00020968,120]
[420834243,1776606640622,-1190.0,0.00020996,2]
[420834245,1776606640631,-280.20115692,0.00021,2]
[420834247,1776606640642,-50000.0,0.00021,2]
[420834249,1776606640652,-10000.0,0.00021,5]
[420834251,1776606640661,-25093.3108115,0.00021,5]
[420834253,1776606640671,-200.0,0.00021,2]
[420834255,1776606640680,-1583.20040604,0.00021,10]
[420834257,1776606640690,-1000.0,0.00021,4]
[420834259,1776606640700,-1000.0,0.00021,2]
[420834261,1776606640709,-3794.20276702,0.00021,2]
[420834263,1776606640719,-3000.0,0.00021,2]
[420834265,1776606640728,-778.0,0.00021,2]
[420834267,1776606640738,-218.0,0.00021,2]
[420834269,1776606640747,-194.0,0.00021,2]
[420834271,1776606640757,-507.0,0.00021,2]
[420834273,1776606640767,-336.0,0.00021,2]
[420834275,1776606640777,-694.0,0.00021,2]
[420834277,1776606640786,-151.0,0.00021,2]
[420834279,1776606640796,-1002.0,0.00021,2]
[420834281,1776606640805,-3000.0,0.0002101,2]
[420834283,1776606640815,-3000.0,0.0002102,2]
[420834285,1776606640824,-1394164.74122166,0.00021022,2]
[420834287,1776606640838,-20329.54696089,0.00021022,2]
[420834289,1776606640850,-12211.37541004,0.00021022,2]
[420834321,1776606641141,-19027.5,0.00021022,2]
[420834333,1776606641249,-1788.92292671,0.00021022,2]
[420834580,1776606643917,-218.21120746,0.0001959,2]
[420834582,1776606643927,-16239.21160688,0.0002099,10]
[420834584,1776606643939,-7685.9,0.0002099,10]
[420834820,1776606647011,-5000.0,0.00020812,2]
[420834821,1776606647021,-11851.32151757,0.0002099,10]
[420835196,1776607318973,-953.49342574,0.00012868,2]
[420835197,1776607318986,-4046.50657426,0.00012868,2]
[420835198,1776607318996,-222.64279215,0.00012933,2]
[420835199,1776607319006,-730.85063359,0.00012998,2]
[420835263,1776607831923,-5000.0,0.00012361,2]
[420835264,1776607831932,-1436.60638372,0.00013,15]
[420835265,1776607831944,-380.97321189,0.00013,15]
[420835364,1776607838202,-930.34300424,0.00012237,2]
[420835365,1776607838215,-3480.4521394,0.00012237,2]
[420835366,1776607838226,-98182.42040439,0.00013,15]
[420835367,1776607838236,-500.0,0.00013129,2]
[420835368,1776607838247,-480.85882639,0.00013129,2]
[420835369,1776607838258,-192.30560319,0.00013365,14]
[420835370,1776607838268,-1000.0,0.00013699,2]
[420835371,1776607838278,-1708.977292,0.00016842,2]
[420835372,1776607838288,-441.0,0.00017337,2]
[420835373,1776607838298,-184.0,0.00017337,2]
[420835374,1776607838308,-239.026968,0.0001825,2]
[420835375,1776607838318,-200.0,0.0001899,3]
[420835376,1776607838328,-200.0,0.0001899,2]
[420835377,1776607838338,-200.0,0.0001899,3]
[420835378,1776607838348,-200.0,0.0001899,2]
[420835379,1776607838359,-200.0,0.0001899,2]
[420835380,1776607838369,-239.026968,0.00019018,2]
[420835381,1776607838378,-1190.0,0.00019178,2]
[420835382,1776607838389,-885.0,0.00019279,120]
[420835383,1776607838399,-1190.0,0.00019452,2]
[420835384,1776607838409,-500.0,0.00019588,2]
[420835385,1776607838418,-500.0,0.00019588,2]
[420835386,1776607838428,-500.0,0.00019588,2]
[420835387,1776607838438,-450.30200001,0.00019588,2]
[420835388,1776607838447,-500.0,0.00019588,2]
[420835389,1776607838457,-500.0,0.00019588,2]
[420835390,1776607838466,-500.0,0.00019588,2]
[420835391,1776607838476,-500.0,0.00019588,2]
[420835392,1776607838486,-500.0,0.00019588,2]
[420835393,1776607838495,-500.0,0.00019588,2]
[420835394,1776607838504,-500.0,0.00019588,2]
[420835395,1776607838513,-500.0,0.00019588,2]
[420835396,1776607838522,-500.0,0.00019588,2]
[420835397,1776607838531,-500.0,0.00019588,2]
[420835398,1776607838540,-500.0,0.00019588,2]
[420835399,1776607838549,-500.0,0.00019588,2]
[420835400,1776607838558,-500.0,0.00019588,2]
[420835401,1776607838567,-500.0,0.00019588,2]
[420835402,1776607838577,-500.0,0.00019588,2]
[420835403,1776607838586,-500.0,0.00019588,2]
[420835404,1776607838595,-291.22513601,0.00019588,2]
[420835405,1776607838604,-500.0,0.00019588,2]
[420835406,1776607838612,-500.0,0.00019588,2]
[420835407,1776607838622,-500.0,0.00019588,2]
[420835408,1776607838631,-500.0,0.00019588,2]
[420835409,1776607838640,-500.0,0.00019588,2]
[420835410,1776607838650,-890242.4945732,0.00019589,2]
[420835411,1776607838659,-66474.58245342,0.00019589,2]
[420835412,1776607838678,-19845.01617361,0.00019589,2]
[420835458,1776607840526,-19171.25,0.00019589,2]
[420835618,1776607843113,-2007.23263003,0.00019589,2]
[420835619,1776607843125,-974.90394658,0.00019589,2]
[420835620,1776607843221,-2578.13395272,0.00019589,2]
[420835621,1776607843232,-2499.67735365,0.00019589,2]
[420835622,1776607843244,-3047.67113488,0.00019589,2]
[420835768,1776607846271,-5000.0,0.00019393,2]
[420835769,1776607846280,-22518.82939666,0.00019589,2]
[420835770,1776607846324,-8199.53034091,0.00019589,2]
[420836069,1776609032149,-3744.85097968,8.305e-05,2]
[420836071,1776609032160,-1255.14902032,8.305e-05,2]
[420836073,1776609032170,-166.11174928,8.389e-05,2]
[420836082,1776609032244,-4833.88825072,8.389e-05,2]
[420836084,1776609032254,-1200.0,8.473e-05,2]
[420836086,1776609032263,-300.0,8.516e-05,2]
[420836088,1776609032272,-300.0,8.516e-05,2]
[420836090,1776609032282,-300.0,8.516e-05,2]
[420836092,1776609032291,-300.0,8.516e-05,2]
[420836094,1776609032300,-150.0,8.517e-05,2]
[420836096,1776609032310,-300.0,8.559e-05,2]
[420836099,1776609032322,-200.0,9e-05,2]
[420836101,1776609032331,-1680.0,9.32e-05,2]
[420836103,1776609032341,-420.0,9.368e-05,2]
[420836104,1776609032350,-420.0,9.368e-05,2]
[420836107,1776609032359,-420.0,9.415e-05,2]
[420836109,1776609032368,-200.0,0.0001,2]
[420836111,1776609032378,-587.0,0.00010304,2]
[420836113,1776609032387,-177.0,0.00010517,2]
[420836115,1776609032397,-184.0,0.00011335,2]
[420836117,1776609032407,-1000.0,0.00013699,2]
[420836119,1776609032416,-151.0,0.00014795,2]
[420836121,1776609032427,-1538.35681713,0.00015087,2]
[420836123,1776609032440,-166.45578137,0.00015087,2]
[420836125,1776609032450,-229.17,0.000151,2]
[420836127,1776609032460,-1000.0,0.00015295,2]
[420836129,1776609032470,-1408.0,0.00017997,2]
[420836131,1776609032480,-2209.0,0.00017997,2]
[420836133,1776609032489,-184.0,0.00017997,2]
[420836135,1776609032499,-441.0,0.00017997,2]
[420836137,1776609032509,-2150.738,0.00018332,2]
[420836139,1776609032518,-1747.32142278,0.0001888,2]
[420836141,1776609032530,-78.56786154,0.0001888,2]
[420836143,1776609032540,-200.0,0.00019,2]
[420836145,1776609032550,-164.54019069,0.00019188,2]
[420836147,1776609032562,-500.0,0.00019288,2]
[420836149,1776609032572,-406.53748195,0.00019288,2]
[420836151,1776609032584,-93.46251805,0.00019288,2]
[420836153,1776609032593,-500.0,0.00019288,2]
[420836155,1776609032602,-85.99111493,0.00019288,2]
[420836186,1776609038372,-739.11,0.00016438,2]
[420836187,1776609038382,-414.00888507,0.00019288,2]
[420836188,1776609038392,-365.21140001,0.00019288,2]
[420836189,1776609038401,-500.0,0.00019288,2]
[420836190,1776609038411,-500.0,0.00019288,2]
[420836191,1776609038420,-500.0,0.00019288,2]
[420836192,1776609038430,-233.38291256,0.00019288,2]
[420836193,1776609038440,-500.0,0.00019288,2]
[420836194,1776609038450,-500.0,0.00019288,2]
[420836195,1776609038459,-129.26748645,0.00019288,2]
[420836196,1776609038478,-317.96272121,0.00019288,2]
[420836224,1776609040526,-52.76979234,0.00019288,2]
[420836226,1776609040535,-500.0,0.00019288,2]
[420836228,1776609040545,-470.14610844,0.00019288,2]
[420836230,1776609040554,-500.0,0.00019288,2]
[420836232,1776609040564,-500.0,0.00019288,2]
[420836234,1776609040574,-620.0,0.00019288,2]
[420836236,1776609040583,-500.0,0.00019288,2]
[420836238,1776609040592,-327.08409922,0.00019288,2]
[420836241,1776609040603,-172.91590078,0.00019288,2]
[420836243,1776609040612,-500.0,0.00019288,2]
[420836245,1776609040621,-255.67502004,0.00019288,2]
[420836247,1776609040633,-244.32497996,0.00019288,2]
[420836249,1776609040642,-600.0,0.00019288,2]
[420836251,1776609040652,-1854.01966838,0.00019289,2]
[420836253,1776609040663,-2000.04507,0.00019289,2]
[420836508,1776609043425,-8614.14716759,0.00019289,2]
[420836826,1776609046587,-4511.40630755,0.00019096,2]
[420836827,1776609046597,-6009.4847792,0.00019289,2]
[420836828,1776609046652,-2462.84806561,0.00019289,2]
[420836829,1776609046691,-528.79904169,0.00019289,2]
[420837082,1776610232329,-876.86326639,0.00011432,2]
[420837083,1776610232382,-733.55878409,0.00011432,2]
[420837084,1776610232393,-4123.44121592,0.00011547,2]
[420837321,1776610238787,-876.55878408,0.00011547,2]
[420837323,1776610238796,-2577.41864292,0.00011664,2]
[420837334,1776610238893,-2422.58135708,0.00011664,2]
[420837336,1776610238902,-300.0,0.00013698,2]
[420837338,1776610238912,-1000.0,0.00013699,2]
[420837340,1776610238921,-177.0,0.00013842,2]
[420837342,1776610238931,-160.0,0.00015162,2]
[420837343,1776610238940,-854.488646,0.00015602,2]
[420837345,1776610238949,-204.0,0.00015842,2]
[420837347,1776610238959,-803.4976,0.000176,2]
[420837349,1776610238969,-1508.77,0.000176,2]
[420837351,1776610238978,-1508.77,0.000176,2]
[420837353,1776610238988,-158.88,0.00018105,2]
[420837355,1776610238997,-200.0,0.00018205,2]
[420837357,1776610239007,-152.907,0.00018205,2]
[420837359,1776610239016,-300.11593947,0.000189,2]
[420837361,1776610239026,-151.0,0.00018963,2]
[420837363,1776610239035,-500.0,0.00018988,2]
[420837365,1776610239044,-500.0,0.00018988,2]
[420837367,1776610239054,-354.24100947,0.00018988,2]
[420837369,1776610239063,-500.0,0.00018988,2]
[420837371,1776610239072,-500.0,0.00018988,2]
[420837373,1776610239081,-500.0,0.00018988,2]
[420837374,1776610239090,-333.02217873,0.00018988,2]
[420837376,1776610239100,-500.0,0.00018988,2]
[420837378,1776610239109,-500.0,0.00018988,2]
[420837380,1776610239118,-500.0,0.00018988,2]
[420837382,1776610239127,-500.0,0.00018988,2]
[420837384,1776610239137,-500.0,0.00018988,2]
[420837386,1776610239146,-593.47632489,0.00018988,2]
[420837388,1776610239155,-500.0,0.00018988,2]
[420837390,1776610239164,-418.83279323,0.00018988,2]
[420837392,1776610239174,-500.0,0.00018988,2]
[420837394,1776610239184,-500.0,0.00018988,2]
[420837396,1776610239194,-500.0,0.00018988,2]
[420837398,1776610239203,-500.0,0.00018988,2]
[420837400,1776610239212,-53645.947475,0.00018989,2]
[420837404,1776610239243,-19324.05634671,0.00018989,2]
[420837432,1776610240909,-22835.99999999,0.00018989,2]
[420837433,1776610240920,-16578.62442029,0.00018989,2]
[420837439,1776610243539,-695.7,0.00018989,2]
[420837440,1776610243592,-920.38129747,0.00018989,2]
[420837441,1776610243604,-620.51122382,0.00018989,2]
[420837445,1776610246657,-500.0,0.00018988,2]
[420837446,1776610246667,-9475.28282143,0.00018989,2]
[420837447,1776610246677,-209.75980676,0.00018996,2]
[420837448,1776610246687,-3718.23266219,0.00019,2]
[420837449,1776610246768,-170.67278137,0.00019,2]
[420837450,1776610246778,-1315.80870958,0.00019,2]
[420837451,1776610246788,-500.0,0.00019087,2]
[420837452,1776610246797,-161.81850905,0.00019087,2]
[420837453,1776610246823,-338.18149095,0.00019087,2]
[420837454,1776610246832,-247.04793814,0.00019087,2]
[420837455,1776610246843,-36.32010065,0.00019087,2]
[420837456,1776610246852,-455.64798,0.00019087,2]
[420837457,1776610246861,-500.0,0.00019087,2]
[420837458,1776610246871,-500.0,0.00019087,2]
[420837459,1776610246880,-500.0,0.00019087,2]
[420837460,1776610246889,-500.0,0.00019087,2]
[420837461,1776610246898,-500.0,0.00019087,2]
[420837462,1776610246907,-500.0,0.00019087,2]
[420837463,1776610246917,-332.13162391,0.00019087,2]
[420837523,1776610861891,-1139.87096234,5e-05,2]
[420837527,1776610917257,-468.05784112,0.00012514,2]
[420837528,1776610946531,-298.27230045,7.483e-05,2]
[420837529,1776610946574,-543.32636144,0.00012514,2]
[420837531,1776610975938,-298.27230045,0.00012514,2]
[420837584,1776611438125,-300.0,0.00010269,14]
[420837585,1776611438134,-5000.0,0.00010748,2]
[420837586,1776611438144,-5000.0,0.00010857,2]
[420837587,1776611438154,-150.0,0.00010967,2]
[420837588,1776611438163,-300.0,0.00011073,2]
[420837589,1776611438172,-300.0,0.00011073,2]
[420837590,1776611438181,-300.0,0.00011073,2]
[420837591,1776611438191,-300.0,0.00011073,2]
[420837592,1776611438201,-300.0,0.00011073,2]
[420837593,1776611438210,-300.0,0.00011073,2]
[420837594,1776611438219,-300.0,0.00011073,2]
[420837595,1776611438229,-300.0,0.00011073,2]
[420837596,1776611438238,-300.0,0.00011073,2]
[420837597,1776611438247,-300.0,0.00011073,2]
[420837598,1776611438256,-300.0,0.00011073,2]
[420837599,1776611438265,-300.0,0.00011073,2]
[420837600,1776611438274,-300.0,0.00011073,2]
[420837601,1776611438283,-300.0,0.00011073,2]
[420837602,1776611438293,-300.0,0.00011073,2]
[420837603,1776611438302,-600.0,0.00011293,2]
[420837604,1776611438310,-300.0,0.00011663,2]
[420837606,1776611438320,-1200.0,0.00011663,2]
[420837607,1776611438329,-4889.92212541,0.00011664,2]
[420837608,1776611438338,-720.0,0.00012423,2]
[420837609,1776611438348,-420.0,0.00012808,2]
[420837611,1776611438357,-234.7,0.000129,2]
[420837612,1776611438367,-177.0,0.00012967,2]
[420837613,1776611438376,-954.1127056,0.00013342,2]
[420837615,1776611438386,-864.0,0.00013665,2]
[420837617,1776611438395,-156.0,0.00013699,2]
[420837619,1776611438403,-1000.0,0.00013699,2]
[420837620,1776611438412,-1000.0,0.00013699,2]
[420837621,1776611438421,-282.34,0.000138,2]
[420837622,1776611438431,-155.17106427,0.00013831,2]
[420837624,1776611438440,-210.279,0.00014045,2]
[420837625,1776611438450,-587.0,0.00014065,2]
[420837627,1776611438459,-218.99178387,0.00014743,2]
[420837628,1776611438468,-204.0,0.00014967,2]
[420837629,1776611438477,-1000.0,0.00015032,2]
[420837631,1776611438486,-1099.06099798,0.00015097,2]
[420837632,1776611438495,-1993.69784352,0.000152,2]
[420837633,1776611438504,-1993.69784352,0.000153,2]
[420837635,1776611438514,-164.54019065,0.000154,2]
[420837636,1776611438523,-823.0,0.00015445,2]
[420837638,1776611438532,-1993.69784352,0.000155,2]
[420837639,1776611438541,-1993.69784352,0.000156,2]
[420837641,1776611438550,-1976.76726809,0.00015649,2]
[420837642,1776611438558,-1993.69784352,0.000158,2]
[420837643,1776611438567,-1993.69784352,0.00016,2]
[420837644,1776611438576,-1993.69784352,0.000161,2]
[420837645,1776611438585,-1993.69784352,0.000163,2]
[420837646,1776611438595,-1993.69784352,0.000164,2]
[420837647,1776611438604,-257.16976294,0.000164,2]
[420837648,1776611438613,-500.0,0.00016478,2]
[420837649,1776611438623,-1000.0,0.00016535,2]
[420837650,1776611438632,-244.0,0.00016535,2]
[420837651,1776611438641,-210.279,0.00016545,4]
[420837652,1776611438650,-1993.69784352,0.000166,2]
[420837653,1776611438659,-164.54019065,0.0001668,2]
[420837654,1776611438668,-500.0,0.00016752,2]
[420837655,1776611438678,-153.0352371,0.00016779,2]
[420837656,1776611438690,-4447.72635321,0.00016957,2]
[420837657,1776611438700,-1152.0,0.00016961,2]
[420837658,1776611438709,-231.0,0.00016967,2]
[420837659,1776611438719,-500.0,0.00017,2]
[420837660,1776611438728,-2209.0,0.00017016,2]
[420837661,1776611438739,-500.0,0.00017025,2]
[420837662,1776611438750,-500.0,0.00017299,2]
[420837663,1776611438759,-169.77,0.00017528,2]
[420837664,1776611438769,-169.77,0.0001753,2]
[420837665,1776611438778,-169.78,0.00017532,2]
[420837666,1776611438788,-500.0,0.00017573,2]
[420837667,1776611438798,-191.536,0.00017767,2]
[420837668,1776611438807,-184.0,0.00017767,2]
[420837669,1776611438817,-500.0,0.00017847,2]
[420837670,1776611438827,-160.0,0.00017941,3]
[420837671,1776611438836,-164.54019065,0.0001796,2]
[420837672,1776611438846,-500.0,0.00018121,2]
[420837673,1776611438856,-1000.0,0.00018188,2]
[420837674,1776611438865,-492.0,0.00018188,2]
[420837675,1776611438875,-653.39,0.00018205,2]
[420837676,1776611438884,-7899.16200331,0.00018265,2]
[420837677,1776611438894,-500.0,0.0001858,2]
[420837678,1776611438903,-500.0,0.0001858,2]
[420837679,1776611438913,-500.0,0.0001858,2]
[420837680,1776611438923,-500.0,0.0001858,3]
[420837681,1776611438933,-500.0,0.0001858,2]
[420837682,1776611438943,-500.0,0.0001858,2]
[420837683,1776611438953,-500.14493088,0.0001858,2]
[420837684,1776611438962,-1613.0,0.00018626,2]
[420837685,1776611438972,-3500.01489915,0.00018789,2]
[420837686,1776611438982,-500.0,0.00018792,2]
[420837687,1776611438992,-500.0,0.00018792,2]
[420837688,1776611439002,-791.40451936,0.00018792,2]
[420837689,1776611439011,-3446.3374414,0.00018803,2]
[420837690,1776611439021,-160.000009,0.00018844,2]
[420837691,1776611439032,-500.0,0.00018873,2]
[420837692,1776611439042,-160.02145969,0.00018873,2]
[420837693,1776611439051,-167.6111237,0.00018873,2]
[420837694,1776611439060,-500.0,0.00018873,2]
[420837695,1776611439071,-500.0,0.00018873,2]
[420837696,1776611439081,-500.0,0.00018873,2]
[420837697,1776611439090,-160.21149199,0.00018873,2]
[420837698,1776611439100,-500.0,0.00018873,2]
[420837699,1776611439111,-500.0,0.00018873,2]
[420837700,1776611439122,-500.0,0.00018873,2]
[420837701,1776611439131,-500.0,0.00018873,2]
[420837702,1776611439141,-500.0,0.00018873,2]
[420837703,1776611439150,-500.0,0.00018873,2]
[420837704,1776611439159,-260.31356436,0.00018873,2]
[420837705,1776611439169,-500.0,0.00018873,2]
[420837706,1776611439179,-500.0,0.00018873,2]
[420837707,1776611439188,-499.76961608,0.00018887,2]
[420837708,1776611439197,-500.0,0.00018887,2]
[420837709,1776611439207,-168.953586,0.00018887,2]
[420837710,1776611439217,-1700000.0,0.00018888,2]
[420837711,1776611439226,-859.1649669,0.00018889,2]
[420837712,1776611439236,-393.81004198,0.000189,2]
[420837713,1776611439246,-887.40523235,0.000189,2]
[420837714,1776611439255,-858.66786128,0.000189,2]
[420837715,1776611439265,-258.0,0.00018967,2]
[420837716,1776611439275,-500.0,0.00018973,2]
[420837717,1776611439284,-500.0,0.00018973,2]
[420837718,1776611439294,-500.0,0.00018973,2]
[420837719,1776611439304,-972.5819056,0.0001899,2]
[420837720,1776611439315,-2864.1280448,0.0001899,2]
[420837721,1776611439324,-152.165203,0.0001899,2]
[420837722,1776611439335,-500.0,0.00019,2]
[420837723,1776611439344,-453.29496767,0.00019,2]
[420837724,1776611439354,-302356.7699,0.00019001,2]
[420837725,1776611439364,-458.4669118,0.00019003,30]
[420837726,1776611439374,-500.0,0.00019003,30]
[420837727,1776611439383,-249.65,0.00019003,30]
[420837728,1776611439393,-500.0,0.00019003,30]
[420837729,1776611439403,-500.0,0.00019003,30]
[420837730,1776611439413,-500.0,0.00019003,30]
[420837731,1776611439423,-862.0331578,0.00019003,30]
[420837732,1776611439432,-438.585,0.00019003,30]
[420837733,1776611439442,-600.0,0.00019003,30]
[420837734,1776611439452,-600.0,0.00019003,30]
[420837735,1776611439461,-600.0,0.00019003,30]
[420837736,1776611439471,-600.0,0.00019003,30]
[420837737,1776611439481,-600.0,0.00019003,30]
[420837738,1776611439490,-600.0,0.00019003,30]
[420837739,1776611439500,-600.0,0.00019003,30]
[420837740,1776611439510,-600.0,0.00019003,30]
[420837741,1776611439519,-250.0,0.00019003,30]